Workbook

Sheet IncreasingStd_2_DefT4_G2.5mm
A1: VoiName(Region) [string] | B1: Time [seconds] | C1: Time [minutes] | D1: Averaged [kBq/cc] | E1: Sd [kBq/cc] | F1: Averaged [kBq/cc] | G1: Sd [kBq/cc] | H1: Volume [ccm] | I1: NumberOfPixels [voxels] | J1: SE | K1: %SE | L1: Bias | M1: %Bias | N1: COVframe | O1: COVmean | P1: COVmean | Q1: BPnd | R1: SE | S1: %Bias | T1: %BiasSE | U1: COVframe | V1: COVmean | W1: COVmean | X1: T4 True Data | Y1: kBq/ml | Z1: Av.Measured
A2: BG | B2: 3730 | C2: =B2/60 -> 62.16666667 | D2: 65.374576 | E2: 21.786002 | F2: =D2/8 -> 8.171822 | G2: =E2/8 -> 2.72325025 | H2: 122.32576 | I2: 62635 | J2: =G2/SQRT(I2) -> 0.01088125558 | K2: =J2*100 -> 1.088125558 | L2: =(F2-$Y$2)/$Y$2 -> 0.01136410891 | M2: =100*L2 -> 1.136410891 | N2: =G2/F2 -> 0.3332488459 | O2: =(F2-$Z$2)^2 -> 0.001107153253 | P2: =(SQRT((1/(((COUNT(O2:O11))-1))*(SUM(O2:O11)))))/$Z$2 -> 0.004187457692 | Q2: =(F12/F2)-1 -> 0.966042319 | R2: =SQRT((J2^2)+(J12^2)) -> 0.0631633648 | S2: =100*((Q2-$Y$5)/$Y$5) -> 13.65203752 | T2: =100*((SQRT((J2^2)+(J12^2))/$Y$5)) -> 7.430984094 | U2: =SQRT((N2^2)+(N12^2)) -> 0.3779349211 | V2: =(Q2-$Z$5)^2 -> 0.002457975661 | W2: =(SQRT((1/(((COUNT(V2:V11))-1))*(SUM(V2:V11)))))/$Z$5 -> 0.02505811757 | X2: BG | Y2: 8.08 | Z2: =AVERAGE(F2:F11) -> 8.205095913
A3: BG | B3: 3850 | C3: =B3/60 -> 64.16666667 | D3: 65.760074 | E3: 22.430107 | F3: =D3/8 -> 8.22000925 | G3: =E3/8 -> 2.803763375 | H3: 122.32576 | I3: 62635 | J3: =G3/SQRT(I3) -> 0.01120296083 | K3: =J3*100 -> 1.120296083 | L3: =(F3-$Y$2)/$Y$2 -> 0.01732787748 | M3: =100*L3 -> 1.732787748 | N3: =G3/F3 -> 0.3410900511 | O3: =(F3-$Z$2)^2 -> 0.0002224076354 | P3: =(SQRT((1/(((COUNT(O12:O21))-1))*(SUM(O12:O21)))))/$Z$3 -> 0.01179523103 | Q3: =(F13/F3)-1 -> 0.9182512629 | R3: =SQRT((J3^2)+(J13^2)) -> 0.06595990282 | S3: 8.029560343 | T3: =100*((SQRT((J3^2)+(J13^2))/$Y$5)) -> 7.759988567 | U3: =SQRT((N3^2)+(N13^2)) -> 0.3903234595 | V3: =(Q3-$Z$5)^2 -> 3.193081369e-06 | X3: Hot_1_d20mm | Y3: 14.99 | Z3: =AVERAGE(F12:F21) -> 15.72462436
A4: BG | B4: 3970 | C4: 66.16666667 | D4: 65.739487 | E4: 23.594604 | F4: 8.217435875 | G4: 2.9493255 | H4: 122.32576 | I4: 62635 | J4: 0.01178458152 | K4: 1.178458152 | L4: 0.01700939047 | M4: 1.700939047 | N4: 0.3589106803 | O4: 0.0001522746745 | Q4: 0.9017038876 | R4: 0.0622591015 | S4: 6.082810312 | T4: 7.324600176 | U4: 0.4015542488 | V4: 0.0002178710539
A5: BG | B5: 4090 | C5: 68.16666667 | D5: 65.664688 | E5: 23.192266 | F5: 8.208086 | G5: 2.89903325 | H5: 122.32576 | I5: 62635 | J5: 0.01158362943 | K5: 1.158362943 | L5: 0.01585222772 | M5: 1.585222772 | N5: 0.3531923581 | O5: 8.940623258e-06 | Q5: 0.9016588185 | R5: 0.0694050203 | S5: 6.07750806 | T5: 8.165296506 | U5: 0.4067837124 | V5: 0.0002192035671 | X5: BPnd | Y5: 0.85 | Z5: =AVERAGE(Q2:Q11) -> 0.9164643434
A6: BG | B6: 4210 | C6: 70.16666667 | D6: 65.865713 | E6: 24.757146 | F6: 8.233214125 | G6: 3.09464325 | H6: 122.32576 | I6: 62635 | J6: 0.01236522576 | K6: 1.236522576 | L6: 0.01896214418 | M6: 1.896214418 | N6: 0.3758730434 | O6: 0.0007906338742 | Q6: 0.9102632655 | R6: 0.06521801225 | S6: 7.089795941 | T6: 7.672707323 | U6: 0.4200090219 | V6: 3.845336706e-05
A7: BG | B7: 4330 | C7: 72.16666667 | D7: 65.814901 | E7: 25.483223 | F7: 8.226862625 | G7: 3.185402875 | H7: 122.32576 | I7: 62635 | J7: 0.01272787281 | K7: 1.272787281 | L7: 0.01817606745 | M7: 1.817606745 | N7: 0.3871953405 | O7: 0.0004737897731 | Q7: 0.8978963746 | R7: 0.06645740967 | S7: 5.634867595 | T7: 7.818518784 | U7: 0.4323203954 | V7: 0.0003447694667
A8: BG | B8: 4450 | C8: 74.16666667 | D8: 65.298561 | E8: 25.779507 | F8: 8.162320125 | G8: 3.222438375 | H8: 122.32576 | I8: 62635 | J8: 0.01287585508 | K8: 1.287585508 | L8: 0.01018813428 | M8: 1.018813428 | N8: 0.3947944121 | O8: 0.001829767996 | Q8: 0.9410326975 | R8: 0.07330312377 | S8: 10.70972912 | T8: 8.623896914 | U8: 0.4470168999 | V8: 0.0006036040228
A9: BG | B9: 4570 | C9: 76.16666667 | D9: 65.561816 | E9: 27.03502 | F9: 8.195227 | G9: 3.3793775 | H9: 122.32576 | I9: 62635 | J9: 0.0135029347 | K9: 1.35029347 | L9: 0.01426076733 | M9: 1.426076733 | N9: 0.4123592306 | O9: 9.739543393e-05 | Q9: 0.9133765758 | R9: 0.07372024083 | S9: 7.456067739 | T9: 8.672969509 | U9: 0.4640097053 | V9: 9.534308858e-06
A10: BG | B10: 4690 | C10: 78.16666667 | D10: 66.099375 | E10: 27.182275 | F10: 8.262421875 | G10: 3.397784375 | H10: 122.32576 | I10: 62635 | J10: 0.01357648281 | K10: 1.357648281 | L10: 0.02257696473 | M10: 2.257696473 | N10: 0.4112334648 | O10: 0.003286265977 | Q10: 0.9256555905 | R10: 0.07310437675 | S10: 8.900657711 | T10: 8.600514912 | U10: 0.4607655625 | V10: 8.447902405e-05
A11: BG | B11: 4810 | C11: 80.16666667 | D11: 65.228482 | E11: 27.680271 | F11: 8.15356025 | G11: 3.460033875 | H11: 122.32576 | I11: 62635 | J11: 0.01382521232 | K11: 1.382521232 | L11: 0.009103991337 | M11: 0.9103991337 | N11: 0.4243586567 | O11: 0.002655924509 | Q11: 0.8887626421 | R11: 0.08057864881 | S11: 4.560310831 | T11: 9.479841037 | U11: 0.4861944216 | V11: 0.0007673842569
A12: Hot_1_d20mm | B12: 3730 | C12: 62.16666667 | D12: 128.529183 | E12: 22.912832 | F12: 16.06614787 | G12: 2.864104 | H12: 4.170165 | I12: 2119 | J12: =G12/SQRT(I12) -> 0.06221903993 | K12: =J12*100 -> 6.221903993 | L12: =(F12-$Y$3)/$Y$3 -> 0.07179105237 | M12: 7.179105237 | N12: 0.1782694908 | O12: =(F12-$Z$3)^2 -> 0.1166383096
A13: Hot_1_d20mm | B13: 3850 | C13: 64.16666667 | D13: 126.144345 | E13: 23.937524 | F13: 15.76804313 | G13: 2.9921905 | H13: 4.170165 | I13: 2119 | J13: 0.06500155728 | K13: 6.500155728 | L13: =(F13-$Y$3)/$Y$3 -> 0.05190414443 | M13: 5.190414443 | N13: 0.1897629577 | O13: =(F13-$Z$3)^2 -> 0.001885188937
A14: Hot_1_d20mm | B14: 3970 | C14: 66.16666667 | D14: 125.017038 | E14: 22.513114 | F14: 15.62712975 | G14: 2.81413925 | H14: 4.170165 | I14: 2119 | J14: 0.06113361888 | K14: 6.113361888 | L14: =(F14-$Y$3)/$Y$3 -> 0.04250365243 | M14: 4.250365243 | N14: 0.1800803663 | O14: 0.009505199467
A15: Hot_1_d20mm | B15: 4090 | C15: 68.16666667 | D15: 124.871833 | E15: 25.200654 | F15: 15.60897912 | G15: 3.15008175 | H15: 4.170165 | I15: 2119 | J15: 0.06843154515 | K15: 6.843154515 | L15: 0.04129280354 | M15: 4.129280354 | N15: 0.2018121573 | O15: 0.01337382096
A16: Hot_1_d20mm | B16: 4210 | C16: 70.16666667 | D16: 125.820852 | E16: 23.581605 | F16: 15.7276065 | G16: 2.947700625 | H16: 4.170165 | I16: 2119 | J16: 0.06403507097 | K16: 6.403507097 | L16: 0.04920657105 | M16: 4.920657105 | N16: 0.1874220737 | O16: 8.893144069e-06
A17: Hot_1_d20mm | B17: 4330 | C17: 72.16666667 | D17: 124.909862 | E17: 24.020622 | F17: 15.61373275 | G17: 3.00257775 | H17: 4.170165 | I17: 2119 | J17: 0.06522720716 | K17: 6.522720716 | L17: 0.04160992328 | M17: 4.160992328 | N17: 0.1923036469 | O17: 0.01229694972
A18: Hot_1_d20mm | B18: 4450 | C18: 74.16666667 | D18: 126.746642 | E18: 26.57496 | F18: 15.84333025 | G18: 3.32187 | H18: 4.170165 | I18: 2119 | J18: 0.07216342779 | K18: 7.216342779 | L18: 0.05692663442 | M18: 5.692663442 | N18: 0.2096699335 | O18: 0.01409108773
A19: Hot_1_d20mm | B19: 4570 | C19: 76.16666667 | D19: 125.444443 | E19: 26.688986 | F19: 15.68055538 | G19: 3.33612325 | H19: 4.170165 | I19: 2119 | J19: 0.07247306163 | K19: 7.247306163 | L19: 0.04606773682 | M19: 4.606773682 | N19: 0.2127554267 | O19: 0.001942075659
A20: Hot_1_d20mm | B20: 4690 | C20: 78.16666667 | D20: 127.284631 | E20: 26.453146 | F20: 15.91057888 | G20: 3.30664325 | H20: 4.170165 | I20: 2119 | J20: 0.07183264589 | K20: 7.183264589 | L20: 0.06141286691 | M20: 6.141286691 | N20: 0.2078267093 | O20: 0.03457908072
A21: Hot_1_d20mm | B21: 4810 | C21: 80.16666667 | D21: 123.20112 | E21: 29.233927 | F21: 15.40014 | G21: 3.654240875 | H21: 4.170165 | I21: 2119 | J21: 0.07938376502 | K21: 7.938376502 | L21: 0.02736090727 | M21: 2.736090727 | N21: 0.2372862114 | O21: 0.1052901015

Sheet IncreasingStd_3_DefT5_G2.5mm
A1: VoiName(Region) [string] | B1: Time [seconds] | C1: Time [minutes] | D1: Averaged [kBq/cc] | E1: Sd [kBq/cc] | F1: Averaged [kBq/cc] | G1: Sd [kBq/cc] | H1: Volume [ccm] | I1: NumberOfPixels [voxels] | J1: SE | K1: %SE | L1: Bias | M1: %Bias | N1: COVframe | O1: COVmean | P1: COVmean | Q1: BPnd | R1: SE | S1: %Bias | T1: %BiasSE | U1: COVframe | V1: COVmean | W1: COVmean | X1: T5 True Data | Y1: kBq/ml | Z1: Av.Measured
A2: BG | B2: 4960 | C2: =B2/60 -> 82.66666667 | D2: 64.792484 | E2: 24.255773 | F2: =D2/16 -> 4.04953025 | G2: =E2/16 -> 1.515985813 | H2: 122.32576 | I2: 62635 | J2: =G2/SQRT(I2) -> 0.006057404782 | K2: =J2*100 -> 0.6057404782 | L2: =(F2-$Y$2)/$Y$2 -> 0.009857917706 | M2: =100*L2 -> 0.9857917706 | N2: =G2/F2 -> 0.3743609058 | O2: =(F2-$Z$2)^2 -> 9.307965386e-06 | P2: =(SQRT((1/(((COUNT(O2:O7))-1))*(SUM(O2:O7)))))/$Z$2 -> 0.004939411636 | Q2: =(F8/F2)-1 -> 0.8606453335 | R2: =SQRT((J2^2)+(J8^2)) -> 0.03229594171 | S2: =100*((Q2-$Y$5)/$Y$5) -> 1.252392176 | T2: =100*((SQRT((J2^2)+(J8^2))/$Y$5)) -> 3.799522554 | U2: =SQRT((N2^2)+(N8^2)) -> 0.4215532054 | V2: =(Q2-$Z$5)^2 -> 0.00106002308 | W2: =(SQRT((1/(((COUNT(V2:V7))-1))*(SUM(V2:V7)))))/$Z$5 -> 0.02488459276 | X2: BG | Y2: 4.01 | Z2: =AVERAGE(F2:F7) -> 4.052581146
A3: BG | B3: 5140 | C3: =B3/60 -> 85.66666667 | D3: 65.153332 | E3: 25.08706 | F3: =D3/16 -> 4.07208325 | G3: =E3/16 -> 1.56794125 | H3: 122.32576 | I3: 62635 | J3: =G3/SQRT(I3) -> 0.006265002447 | K3: =J3*100 -> 0.6265002447 | L3: =(F3-$Y$2)/$Y$2 -> 0.01548210723 | M3: =100*L3 -> 1.548210723 | N3: =G3/F3 -> 0.3850464624 | O3: =(F3-$Z$2)^2 -> 0.0003803320669 | P3: =(SQRT((1/(((COUNT(O8:O13))-1))*(SUM(O8:O13)))))/$Z$3 -> 0.01310556531 | Q3: =(F9/F3)-1 -> 0.9213685648 | R3: =SQRT((J3^2)+(J9^2)) -> 0.03305241433 | S3: =100*((Q3-$Y$5)/$Y$5) -> 8.396301747 | T3: =100*((SQRT((J3^2)+(J9^2))/$Y$5)) -> 3.888519333 | U3: =SQRT((N3^2)+(N9^2)) -> 0.4297891462 | V3: =(Q3-$Z$5)^2 -> 0.0007932805028 | W3: =(SQRT((1/(((COUNT(V8:V13))-1))*(SUM(V8:V13)))))/$Z$6 ->  | X3: Hot_1_d20mm | Y3: 7.44 | Z3: =AVERAGE(F8:F13) -> 7.672388781
A4: BG | B4: 5320 | C4: 88.66666667 | D4: 65.141987 | E4: 26.173982 | F4: 4.071374188 | G4: 1.635873875 | H4: 122.32576 | I4: 62635 | J4: 0.006536439953 | K4: 0.6536439953 | L4: 0.01530528367 | M4: 1.530528367 | N4: 0.4017989503 | O4: 0.0003531784151 | Q4: 0.8969294719 | R4: 0.03703493518 | S4: 5.521114344 | T4: 4.357051197 | U4: 0.4567839224 | V4: 1.388414007e-05
A5: BG | B5: 5500 | C5: 91.66666667 | D5: 65.003989 | E5: 27.482772 | F5: 4.062749313 | G5: 1.71767325 | H5: 122.32576 | I5: 62635 | J5: 0.006863284651 | K5: 0.6863284651 | L5: 0.01315444202 | M5: 1.315444202 | N5: 0.4227859309 | O5: 0.0001033916134 | Q5: 0.8743961082 | R5: 0.04101396314 | S5: 2.870130378 | T5: 4.825172135 | U5: 0.4883567038 | V5: 0.0003537115588 | X5: BPnd | Y5: 0.85 | Z5: =AVERAGE(Q2:Q7) -> 0.8932033291
A6: BG | B6: 5680 | C6: 94.66666667 | D6: 64.605056 | E6: 28.797903 | F6: 4.037816 | G6: 1.799868938 | H6: 122.32576 | I6: 62635 | J6: 0.00719171289 | K6: 0.719171289 | L6: 0.006936658354 | M6: 0.6936658354 | N6: 0.4457530847 | O6: 0.0002180095315 | Q6: 0.9084030049 | R6: 0.04076206539 | S6: 6.870941749 | T6: 4.795537105 | U6: 0.5061067245 | V6: 0.0002310301423
A7: BG | B7: 5860 | C7: 97.66666667 | D7: 64.350942 | E7: 29.534102 | F7: 4.021933875 | G7: 1.845881375 | H7: 122.32576 | I7: 62635 | J7: 0.007375564187 | K7: 0.7375564187 | L7: 0.002976028678 | M7: 0.2976028678 | N7: 0.4589536856 | O7: 0.0009392552095 | Q7: 0.8974774915 | R7: 0.03979691006 | S7: 5.585587232 | T7: 4.681989418 | U7: 0.5160268048 | V7: 1.826846367e-05
A8: Hot_1_d20mm | B8: 4960 | C8: 82.66666667 | D8: 120.555833 | E8: 23.364522 | F8: 7.534739563 | G8: 1.460282625 | H8: 4.170165 | I8: 2119 | J8: 0.03172279462 | K8: 3.172279462 | L8: =(F8-$Y$3)/$Y$3 -> 0.01273381216 | M8: 1.273381216 | N8: 0.1938066489 | O8: =(F8-$Z$3)^2 -> 0.01894730742
A9: Hot_1_d20mm | B9: 5140 | C9: 85.66666667 | D9: 125.183564 | E9: 23.9025 | F9: 7.82397275 | G9: 1.49390625 | H9: 4.170165 | I9: 2119 | J9: 0.03245322538 | K9: 3.245322538 | L9: =(F9-$Y$3)/$Y$3 -> 0.05160924059 | M9: 5.160924059 | N9: 0.1909396029 | O9: =(F9-$Z$3)^2 -> 0.02297769958
A10: Hot_1_d20mm | B10: 5320 | C10: 88.66666667 | D10: 123.569755 | E10: 26.848826 | F10: 7.723109688 | G10: 1.678051625 | H10: 4.170165 | I10: 2119 | J10: 0.03645355094 | K10: 3.645355094 | L10: 0.03805237735 | M10: 3.805237735 | N10: 0.2172766791 | O10: 0.002572610331
A11: Hot_1_d20mm | B11: 5500 | C11: 91.66666667 | D11: 121.843224 | E11: 29.781716 | F11: 7.6152015 | G11: 1.86135725 | H11: 4.170165 | I11: 2119 | J11: 0.04043563399 | K11: 4.043563399 | L11: 0.02354858871 | M11: 2.354858871 | N11: 0.2444265263 | O11: 0.003270385137
A12: Hot_1_d20mm | B12: 5680 | C12: 94.66666667 | D12: 123.292483 | E12: 29.55118 | F12: 7.705780188 | G12: 1.84694875 | H12: 4.170165 | I12: 2119 | J12: 0.04012262754 | K12: 4.012262754 | L12: 0.03572314348 | M12: 3.572314348 | N12: 0.2396835499 | O12: 0.001114986011
A13: Hot_1_d20mm | B13: 5860 | C13: 97.66666667 | D13: 122.104464 | E13: 28.803503 | F13: 7.631529 | G13: 1.800218937 | H13: 4.170165 | I13: 2119 | J13: 0.03910748142 | K13: 3.910748142 | L13: 0.02574314516 | M13: 2.574314516 | N13: 0.2358923012 | O13: 0.001669521724

Sheet IncreasingStd_5_DefT6_G2.5mm
A1: VoiName(Region) [string] | B1: Time [seconds] | C1: Time [minutes] | D1: Averaged [kBq/cc] | E1: Sd [kBq/cc] | F1: Averaged [kBq/cc] | G1: Sd [kBq/cc] | H1: Volume [ccm] | I1: NumberOfPixels [voxels] | J1: SE | K1: %SE | L1: Bias | M1: %Bias | N1: COVframe | O1: COVmean | P1: COVmean | Q1: BPnd | R1: SE | S1: %Bias | T1: %BiasSE | U1: COVframe | V1: COVmean | W1: COVmean | X1: T6 True Data | Y1: kBq/ml | Z1: Av.Measured
A2: BG | B2: 6100 | C2: =B2/60 -> 101.6666667 | D2: 64.074166 | E2: 25.336006 | F2: =D2/32 -> 2.002317688 | G2: =E2/32 -> 0.7917501875 | H2: 122.32576 | I2: 62635 | J2: =G2/SQRT(I2) -> 0.00316358592 | K2: =J2*100 -> 0.316358592 | L2: =(F2-$Y$2)/$Y$2 -> 0.006189792714 | M2: =100*L2 -> 0.6189792714 | N2: =G2/F2 -> 0.3954168674 | O2: =(F2-$Z$2)^2 -> 9.835672035e-06 | P2: =(SQRT((1/(((COUNT(O2:O5))-1))*(SUM(O2:O5)))))/$Z$2 -> 0.003592630005 | Q2: =(F6/F2)-1 -> 0.8844515432 | R2: =SQRT((J2^2)+(J6^2)) -> 0.01836055115 | S2: =100*((Q2-$Y$5)/$Y$5) -> 4.053122733 | T2: =100*((SQRT((J2^2)+(J6^2))/$Y$5)) -> 2.160064841 | U2: =SQRT((N2^2)+(N6^2)) -> 0.4528107061 | V2: =(Q2-$Z$5)^2 -> 1.723385236e-07 | W2: =(SQRT((1/(((COUNT(V2:V5))-1))*(SUM(V2:V5)))))/$Z$5 -> 0.03120662268 | X2: BG | Y2: 1.99 | Z2: =AVERAGE(F2:F5) -> 2.005453875
A3: BG | B3: 6400 | C3: =B3/60 -> 106.6666667 | D3: 63.900148 | E3: 26.745805 | F3: =D3/32 -> 1.996879625 | G3: =E3/32 -> 0.8358064063 | H3: 122.32576 | I3: 62635 | J3: =G3/SQRT(I3) -> 0.00333962078 | K3: =J3*100 -> 0.333962078 | L3: =(F3-$Y$2)/$Y$2 -> 0.00345709799 | M3: =100*L3 -> 0.345709799 | N3: =G3/F3 -> 0.4185562293 | O3: =(F3-$Z$2)^2 -> 7.351776306e-05 | P3: =(SQRT((1/(((COUNT(O6:O9))-1))*(SUM(O6:O9)))))/$Z$3 -> 0.01142021129 | Q3: =(F7/F3)-1 -> 0.9189225978 | R3: =SQRT((J3^2)+(J7^2)) -> 0.01742660787 | S3: =100*((Q3-$Y$5)/$Y$5) -> 8.108540918 | T3: =100*((SQRT((J3^2)+(J7^2))/$Y$5)) -> 2.050189161 | U3: =SQRT((N3^2)+(N7^2)) -> 0.466268571 | V3: =(Q3-$Z$5)^2 -> 0.001217046345 | X3: Hot_1_d20mm | Y3: 3.7 | Z3: =AVERAGE(F6:F9) -> 3.778211063
A4: BG | B4: 6700 | C4: 111.6666667 | D4: 64.406053 | E4: 28.959523 | F4: 2.012689156 | G4: 0.9049850938 | H4: 122.32576 | I4: 62635 | J4: 0.003616037161 | K4: 0.3616037161 | L4: 0.01140158606 | M4: 1.140158606 | N4: 0.4496397722 | O4: 5.234929477e-05 | Q4: 0.8515037399 | R4: 0.01964199306 | S4: 0.1769105734 | T4: 2.310822713 | U4: 0.5089709472 | V4: 0.001058374396
A5: BG | B5: 7000 | C5: 116.6666667 | D5: 64.317729 | E5: 30.70907 | F5: 2.009929031 | G5: 0.9596584375 | H5: 122.32576 | I5: 62635 | J5: 0.00383449473 | K5: 0.383449473 | L5: 0.01001458857 | M5: 1.001458857 | N5: 0.4774588667 | O5: 2.002702346e-05 | Q5: 0.881267745 | R5: 0.02101921217 | S5: 3.678558236 | T5: 2.47284849 | U5: 0.5396913004 | V5: 7.66548633e-06 | X5: BPnd | Y5: 0.85 | Z5: =AVERAGE(Q2:Q5) -> 0.8840364065
A6: Hot_1_d20mm | B6: 6100 | C6: 101.6666667 | D6: 120.744661 | E6: 26.641383 | F6: 3.773270656 | G6: 0.8325432188 | H6: 4.170165 | I6: 2119 | J6: 0.01808594931 | K6: 1.808594931 | L6: =(F6-$Y$3)/$Y$3 -> 0.01980288007 | M6: 1.980288007 | N6: 0.2206423272 | O6: =(F6-$Z$3)^2 -> 2.440761392e-05
A7: Hot_1_d20mm | B7: 6400 | C7: 106.6666667 | D7: 122.619438 | E7: 25.19436 | F7: 3.831857438 | G7: 0.78732375 | H7: 4.170165 | I7: 2119 | J7: 0.0171036135 | K7: 1.71036135 | L7: =(F7-$Y$3)/$Y$3 -> 0.03563714527 | M7: 3.563714527 | N7: 0.2054679128 | O7: =(F7-$Z$3)^2 -> 0.002877933551
A8: Hot_1_d20mm | B8: 6700 | C8: 111.6666667 | D8: 119.248048 | E8: 28.438972 | F8: 3.7265015 | G8: 0.888717875 | H8: 4.170165 | I8: 2119 | J8: 0.01930627273 | K8: 1.930627273 | L8: 0.007162567568 | M8: 0.7162567568 | N8: 0.2384858493 | O8: 0.002673878854
A9: Hot_1_d20mm | B9: 7000 | C9: 116.6666667 | D9: 120.998869 | E9: 30.442635 | F9: 3.781214656 | G9: 0.9513323437 | H9: 4.170165 | I9: 2119 | J9: 0.02066649294 | K9: 2.066649294 | L9: 0.02194990709 | M9: 2.194990709 | N9: 0.2515943765 | O9: 9.021575415e-06
